Cogmind - Beta 17 --- EXPLORER MODE // 2026.07.02 @ 20:01:49 Player: Deloads Result: Destroyed by P-80 Master with Gamma Rifle Performance ------------- Evolutions (9) 4500 Regions Visited (18) 3600 Robots Destroyed (89) 445 Value Destroyed (3134) 3134 Prototype IDs (5) 100 Alien Tech Used (0) 0 Bonus (1609) 1609 TOTAL SCORE: 13388 Bonus ------- High Alert Combat Kills 11 Follower Combat Kills 628 Entered Garrisons 200 Entered DSFs 500 Acquired ECA 300 Friendly Fire -30 Cogmind --------- Core Integrity 0/1600 Matter 159/300 Energy 100/100 System Corruption 3% Temperature Cool (0) Movement Core (50) Location -1/Access Parts ------- > --- POWER (3) -------- (None) > --- PROPULSION (10) -- (None) > --- UTILITY (11) ----- (None) > --- WEAPON (2) ------- (None) > --- INVENTORY (5) ---- Light Ion Engine Light Particle Reactor Peak State ------------ > --- POWER ------------ Micro Nuclear Core Micro Nuclear Core Improved Fusion Compressor > --- PROPULSION ------- VTOL Module VTOL Module VTOL Module Nuclear Pulse Thruster Cooled Cesium-ion Thruster Field Propulsion Drive Field Propulsion Drive Impulse Thruster Impulse Thruster Improved Diametric Drive > --- UTILITY ---------- Advanced Power Amplifier Advanced Heat Sink Small Storage Unit Improved Trap Scanner Encrypted Comm Array Advanced ECM Suite Improved Cloaking Device Hacking Suite Hacking Suite Improved Hacking Suite > --- WEAPON ----------- (None) > --- INVENTORY -------- Light Ion Engine Improved Ion Engine Particle Reactor Light Particle Reactor Field Propulsion Drive Impulse Thruster Improved Arc Projector Advanced Assault Cannon [Rating: 116] Favorites ----------- Power Light Ion Engine Engine Light Ion Engine Power Core Micro Nuclear Core Reactor Particle Reactor Propulsion Light Treads Treads Light Treads Flight Unit Improved Flight Unit Utility High-capacity Storage Unit Device Terrain Scanner Storage High-capacity Storage Unit Processor Targeting Computer Hackware Hacking Suite Protection Light Armor Plating Weapon Light Assault Rifle Energy Gun Small Laser Ballistic Gun Light Assault Rifle Ballistic Cannon Advanced Assault Cannon Launcher Heavy Shock Bomb Launcher Special Weapon Mining Laser Slashing Weapon Katana Build | -11 -10 -9 -8 -8 -8 -7 -7 -7 -7 -6 -5 -5 -5 -4 -4 -3 -2 -1 ------- Run | Yrd Mat Mat Mat Sto Gar Fac Was Fac DSF Fac Fac Upp Upp Fac Ext Res Res Acc Slots Evolved 19 | . 1 2 2 . . 2 . . . 2 2 . . 2 . 2 2 2 Power 2 | . . . . . . . . . . . 1 . . . . . 1 . Propulsion 8 | . . . 1 . . 2 . . . 2 . . . 1 . 1 . 1 Utility 9 | . 1 2 1 . . . . . . . 1 . . 1 . 1 1 1 Weapon . | . . . . . . . . . . . . . . . . . . . Parts Attached 87 | 7 3 16 4 7 2 5 . . . 8 6 2 . 7 2 3 3 12 Power 10 | 1 1 2 . 1 . . . . . 1 1 . . . . . . 3 Engine 6 | 1 1 2 . 1 . . . . . . . . . . . . . 1 Core 3 | . . . . . . . . . . 1 1 . . . . . . 1 Reactor 1 | . . . . . . . . . . . . . . . . . . 1 Propulsion 35 | 2 . 4 1 3 . 4 . . . 4 4 . . 3 . 2 1 7 Treads 8 | 2 . 3 1 2 . . . . . . . . . . . . . . Leg . | . . . . . . . . . . . . . . . . . . . Wheel . | . . . . . . . . . . . . . . . . . . . Hover . | . . . . . . . . . . . . . . . . . . . Flight 27 | . . 1 . 1 . 4 . . . 4 4 . . 3 . 2 1 7 Utility 32 | 2 2 7 2 2 1 1 . . . 3 1 1 . 4 2 1 1 2 Device 12 | . . 1 1 1 . 1 . . . 2 1 1 . 1 1 . 1 1 Storage 3 | 1 1 . . . . . . . . . . . . 1 . . . . Processor 7 | 1 . 5 . . 1 . . . . . . . . . . . . . Hackware 7 | . . 1 . . . . . . . 1 . . . 2 1 1 . 1 Protection 3 | . 1 . 1 1 . . . . . . . . . . . . . . Artifact . | . . . . . . . . . . . . . . . . . . . Weapon 10 | 2 . 3 1 1 1 . . . . . . 1 . . . . 1 . Energy Gun 2 | 1 . 1 . . . . . . . . . . . . . . . . Energy Cannon . | . . . . . . . . . . . . . . . . . . . Ballistic Gun 4 | 1 . 1 . 1 . . . . . . . 1 . . . . . . Ballistic Cannon 1 | . . . . . 1 . . . . . . . . . . . . . Launcher 1 | . . . . . . . . . . . . . . . . . 1 . Special Weapon 1 | . . . 1 . . . . . . . . . . . . . . . Impact Weapon . | . . . . . . . . . . . . . . . . . . . Slashing Weapon 1 | . . 1 . . . . . . . . . . . . . . . . Piercing Weapon . | . . . . . . . . . . . . . . . . . . . Special Melee Weapon . | . . . . . . . . . . . . . . . . . . . Unidentified Prototypes 5 | . . 1 . 1 . . . . . 2 . . . . . . . 1 Parts Lost 53 | . 1 7 1 3 . . . . . 5 1 1 . 3 1 . 3 27 Power 6 | . 1 2 . . . . . . . . . . . . . . . 3 Propulsion 20 | . . 2 . . . . . . . 3 . . . 1 . . 1 13 Utility 20 | . . 1 1 3 . . . . . 2 . . . 2 . . 1 10 Weapon 7 | . . 2 . . . . . . . . 1 1 . . 1 . 1 1 Highest Loss Streak 17 | . 1 3 1 1 . . . . . 2 1 1 . 2 1 . 3 17 To Critical Strikes 1 | . . 1 . . . . . . . . . . . . . . . . Average Backups 13 | 4 12 18 19 19 19 7 4 4 4 3 3 4 5 5 4 5 7 6 Power 1 | . 1 2 1 1 2 . . . . 1 1 1 2 2 2 2 2 3 Propulsion 5 | 1 3 6 9 9 11 4 3 3 3 1 1 3 3 3 2 2 2 . Utility 3 | 1 5 6 5 4 2 . . . . . . . . . . . . . Weapon 2 | . 2 4 4 4 4 2 1 1 1 1 1 . . . . . 1 1 Tool/Special . | . . . . . . . . . . . . . . . . . . . Unused Backups 19 | . . 8 . 2 . 7 . . . . . . . . . . . 2 Power 2 | . . . . . . 1 . . . . . . . . . . . 1 Propulsion 10 | . . 7 . 1 . 2 . . . . . . . . . . . . Utility 3 | . . 1 . . . 2 . . . . . . . . . . . . Weapon 4 | . . . . 1 . 2 . . . . . . . . . . . 1 Tool/Special . | . . . . . . . . . . . . . . . . . . . Average Slot Usage (%) 93 | . 99 97 97 92 99 86 92 92 92 93 86 97 100 95 92 89 86 49 Engine 7 | . 11 9 8 8 8 7 7 7 7 2 . . . . . . . . Core 1 | . . . . . . . . . . 3 10 11 11 10 9 9 8 4 Treads 15 | . 25 18 22 24 25 5 . . . . . . . . . . . . Flight 9 | . . . . . . 25 35 35 35 42 38 38 38 39 37 36 33 19 Device 7 | . . 4 7 4 8 6 7 7 7 7 11 21 22 19 23 20 19 11 Storage 7 | . 12 10 8 8 8 1 . . . . . . . 3 5 4 4 1 Processor 16 | . 12 24 16 16 24 21 21 21 21 15 11 11 11 4 . . . . Hackware 5 | . . 7 8 7 . . . . . 3 5 5 5 8 10 14 15 9 Protection 5 | . 11 2 8 7 8 7 7 7 7 4 . . . . . . . . Energy Gun 4 | . 12 9 2 . . . . . . . . . . . . . . . Ballistic Gun 8 | . 12 9 8 7 8 11 14 14 14 12 8 4 5 5 . . . . Peak Build Rating 116 | 7 9 20 24 30 30 33 33 33 33 56 64 71 71 76 77 83 95 116 Average Rating 28 | 5 8 16 22 24 28 30 33 33 33 45 59 69 71 71 71 81 87 64 On Entrance 41 | . 7 9 20 22 26 28 33 33 33 33 53 64 71 71 70 74 83 64 Avg Prop Armor Cover (%) 2 | . . 13 . . . . . . . 2 . . . 1 1 1 1 10 Naked Turns 70 | . . . . . . . . . . . . . . . . . . 70 Heaviest Build 61 | 15 55 49 52 56 61 58 17 17 17 18 22 28 28 33 36 33 36 35 Greatest Support 68 | 40 40 43 63 68 68 68 25 25 25 41 41 36 36 45 45 36 47 58 Greatest Overweight (x) 9 | 3 1 9 1 . . 1 . . . . . . . . 1 . 1 1 Average Overweight (x) . | . . 1 . . . . . . . . . . . . . . . . Largest Inventory Capacity 20 | 10 20 20 20 20 20 20 5 5 5 5 5 5 5 8 8 8 8 8 Average Capacity 16 | 9 19 20 20 20 20 8 5 5 5 5 5 5 5 7 8 8 8 6 Most Carried 20 | 8 16 20 20 20 20 20 4 4 4 5 5 5 5 7 5 6 8 8 Average Carried 13 | 4 12 18 19 19 19 7 4 4 4 3 4 4 5 5 4 5 7 6 Final Capacity 20 | 10 20 20 20 20 20 5 5 5 5 5 5 5 5 8 8 8 8 5 Final Carried 20 | 8 16 20 19 20 20 4 4 4 4 3 5 5 5 5 5 6 8 2 Class Distribution -------------------- 55% | Hacker-Mutant 22% | Hacker-Sprinter 10% | Hacker-Skirmisher 6% | Commander-Mutant Dominant Class ---------------- Hacker-Mutant | -10/Materials Hacker-Mutant | -9/Materials Hacker-Skirmisher | -8/Materials Commander-Mutant | -8/Storage Hacker-Mutant | -8/Garrison Hacker-Sprinter | -7/Factory Hacker-Sprinter | -7/Waste Hacker-Sprinter | -7/Factory Hacker-Sprinter | -7/DSF Hacker-Sprinter | -6/Factory Hacker-Sprinter | -5/Factory Hacker-Sprinter | -5/Upper Caves Hacker-Sprinter | -5/Upper Caves Hacker-Sprinter | -4/Factory Hacker-Sprinter | -4/Extension Hacker-Sprinter | -3/Research Wizard-Sprinter | -2/Research Hacker-Sprinter | -1/Access Resources | -11 -10 -9 -8 -8 -8 -7 -7 -7 -7 -6 -5 -5 -5 -4 -4 -3 -2 -1 ----------- Run | Yrd Mat Mat Mat Sto Gar Fac Was Fac DSF Fac Fac Upp Upp Fac Ext Res Res Acc Matter Collected 2450 | 287 78 387 146 220 303 87 24 . . 104 . 237 . 234 11 . 79 253 Remotely 34 | . . . . . . 10 24 . . . . . . . . . . . Salvage Created 3000 | 176 550 1097 434 131 265 42 . . . 83 . 89 . 122 11 . . . Parts 172 | 10 39 61 20 7 18 1 . . . 5 . 3 . 4 4 . . . Haulers Intercepted 1 | . . 1 . . . . . . . . . . . . . . . . Recyclers Shooed 5 | . 1 1 2 1 . . . . . . . . . . . . . . Parts Field Recycled . | . . . . . . . . . . . . . . . . . . . Retrieved Matter . | . . . . . . . . . . . . . . . . . . . Parts Self-Destructed . | . . . . . . . . . . . . . . . . . . . Prevented . | . . . . . . . . . . . . . . . . . . . Parts Restored . | . . . . . . . . . . . . . . . . . . . Kills | -11 -10 -9 -8 -8 -8 -7 -7 -7 -7 -6 -5 -5 -5 -4 -4 -3 -2 -1 ------- Run | Yrd Mat Mat Mat Sto Gar Fac Was Fac DSF Fac Fac Upp Upp Fac Ext Res Res Acc Combat Hostiles Destroyed 57 | . 7 20 7 3 10 1 . . . 3 . 4 . 2 . . . . Guns 49 | . 7 20 7 3 8 1 . . . 3 . . . . . . . . Cannons 8 | . . . . . 2 . . . . . . 4 . 2 . . . . Classes Destroyed 12 | 3 4 4 1 . . . . . . . . . . . . . . . Worker 7 | 2 2 . 1 1 . . . . . . . . . 1 . . . . Builder 3 | . 1 1 . 1 . . . . . . . . . . . . . . Tunneler 3 | 2 1 . . . . . . . . . . . . . . . . . Hauler 1 | . . 1 . . . . . . . . . . . . . . . . Recycler 6 | 1 3 1 1 . . . . . . . . . . . . . . . Operator 5 | . . 2 . . . . . . . . . . . 2 1 . . . Watcher 7 | . 3 4 . . . . . . . . . . . . . . . . Swarmer 14 | . 4 3 . . 3 . . . . 2 . 2 . . . . . . Grunt 26 | . 3 9 4 2 5 1 . . . 1 . . . 1 . . . . Duelist 2 | . . 2 . . . . . . . . . . . . . . . . Sentry 12 | . . 6 1 1 2 . . . . . . 1 . 1 . . . . Hunter 3 | . . . 2 . . . . . . . . 1 . . . . . . Best Kill Streak 5 | 3 3 5 1 2 3 1 . . . 3 . 2 . 1 1 . . . Combat Bots Only 5 | . 2 5 1 1 3 1 . . . 3 . 2 . 1 . . . . Max Kills in Single Turn 2 | 1 1 2 1 1 1 1 . . . 1 . 1 . 1 1 . . . Gunslinging 1 | . . 1 . . . . . . . . . . . . . . . . Exploded . | . . . . . . . . . . . . . . . . . . . Melee . | . . . . . . . . . . . . . . . . . . . Uniques/NPCs Destroyed . | . . . . . . . . . . . . . . . . . . . Combat | -11 -10 -9 -8 -8 -8 -7 -7 -7 -7 -6 -5 -5 -5 -4 -4 -3 -2 -1 -------- Run | Yrd Mat Mat Mat Sto Gar Fac Was Fac DSF Fac Fac Upp Upp Fac Ext Res Res Acc Hostile Shots Fired 1044 | . 20 168 75 22 42 13 . . 7 166 8 34 . 33 17 4 64 371 Missed 488 | . 10 52 25 8 14 6 . . 4 94 6 15 . 19 9 2 36 188 Hits 556 | . 10 116 50 14 28 7 . . 3 72 2 19 . 14 8 2 28 183 Melee 13 | . . 3 . . . . . . . 1 . . . . . . 9 . Projectile 543 | . 10 113 50 14 28 7 . . 3 71 2 19 . 14 8 2 19 183 AOE 4 | . . . . . . . . . 2 . . . . . . . 1 1 Critical Strikes 19 | . 1 5 . . . 1 . . . . . . . . . 1 6 5 Damage Taken 6319 | . 129 935 455 138 159 44 . . 48 677 28 237 . 184 151 33 493 2608 Core 2335 | . 46 154 54 . . 9 . . 3 164 16 61 . 15 73 . 127 1613 Absorbed by Shields 85 | . . . . . 73 6 . . 6 . . . . . . . . . Ignored by Resistances 3837 | . 83 589 275 85 142 32 . . 33 412 16 141 . 110 86 19 281 1533 Regen/Repaired (Parts) 596 | . . 283 . 56 . 84 . . . . . . . . 173 . . . Core Remaining (%) 88 | 100 81 61 . . 90 . . . 98 80 . . 92 . 92 100 91 . Volleys Fired 340 | 17 42 125 43 19 36 3 . . . 5 . 19 . 24 3 . 3 1 Largest 2 | 2 2 2 2 2 2 2 . . . 2 . 2 . 2 1 . 1 1 Hottest 125 | 60 60 73 100 125 125 48 . . . 48 . 63 . 63 40 . 46 40 Shots Fired 557 | 25 85 196 56 27 63 6 . . . 10 . 34 . 48 3 . 3 1 Gun 469 | 25 85 196 54 24 30 6 . . . 10 . 15 . 24 . . . . Cannon 72 | . . . . . 24 . . . . . . 19 . 24 3 . 1 1 Launcher 2 | . . . . . . . . . . . . . . . . . 2 . Special 14 | . . . 2 3 9 . . . . . . . . . . . . . Kinetic 407 | 17 42 126 41 24 54 6 . . . 10 . 34 . 48 3 . 1 1 Thermal 148 | 8 43 70 15 3 9 . . . . . . . . . . . . . Explosive . | . . . . . . . . . . . . . . . . . . . Electromagnetic 2 | . . . . . . . . . . . . . . . . . 2 . Robot Hit Streak 48 | 14 40 48 33 15 21 30 . . . 32 . 22 . 16 10 . 13 . Robot Miss Streak 2 | 1 2 2 2 2 1 . . . . 1 . 2 . 2 . . . . Penetration Max . | . . . . . . . . . . . . . . . . . . . Secondary Targets 8 | . 1 6 . . . . . . . 1 . . . . . . . . Max Gunslinging Chain 1 | . 1 1 . . . . . . . 1 . . . . . . . . Shots Hit Robots 452 | 20 69 173 50 12 37 6 . . . 7 . 30 . 43 2 . 3 . Core Hits 186 | 9 31 64 20 8 22 4 . . . 6 . 8 . 13 1 . . . Critical Kills 3 | . 1 1 1 . . . . . . . . . . . . . . . Critical Parts Destroyed 4 | . . 3 . 1 . . . . . . . . . . . . . . Critical Strikes 13 | . 1 5 3 1 . . . . . . . 1 . . 2 . . . Burn 2 | . . 1 1 . . . . . . . . . . . . . . . Destroy 7 | . 1 4 1 1 . . . . . . . . . . . . . . Blast 3 | . . . . . . . . . . . . 1 . . 2 . . . Sever 1 | . . . 1 . . . . . . . . . . . . . . . Melee Attacks 5 | . . . 5 . . . . . . . . . . . . . . . Impact . | . . . . . . . . . . . . . . . . . . . Slashing 5 | . . . 5 . . . . . . . . . . . . . . . Piercing . | . . . . . . . . . . . . . . . . . . . Sneak Attacks 4 | . . . 4 . . . . . . . . . . . . . . . Combat Hostiles . | . . . . . . . . . . . . . . . . . . . Follow-up Attacks . | . . . . . . . . . . . . . . . . . . . Damage Inflicted 6622 | 190 652 1773 908 352 856 126 . . . 139 . 584 . 869 58 . 105 10 Guns 4785 | 190 652 1762 621 296 512 126 . . . 139 . 185 . 302 . . . . Cannons 1398 | . . . . . 344 . . . . . . 399 . 567 58 . 30 . Explosions 56 | . . . . . . . . . . . . . . . . . 56 . Melee 287 | . . . 287 . . . . . . . . . . . . . . . Ramming 72 | . . 11 . 32 . . . . . . . . . . . . 19 10 Kinetic 4785 | 110 235 1026 456 296 856 126 . . . 139 . 584 . 869 58 . 30 . Thermal 1422 | 80 417 736 165 24 . . . . . . . . . . . . . . Explosive . | . . . . . . . . . . . . . . . . . . . Electromagnetic 56 | . . . . . . . . . . . . . . . . . 56 . Impact . | . . . . . . . . . . . . . . . . . . . Slashing 287 | . . . 287 . . . . . . . . . . . . . . . Piercing . | . . . . . . . . . . . . . . . . . . . Highest Corruption 3 | . 2 . . . . . . . . 1 1 1 1 . . . . 3 Average Corruption 1 | . 1 . . . . . . . . 1 1 1 1 . . . . 1 Corruption Purged . | . . . . . . . . . . . . . . . . . . . Corruption Blocked . | . . . . . . . . . . . . . . . . . . . Effects 16 | . 4 . . . . . . . . 4 . . . . . . . 8 Message Errors 2 | . . . . . . . . . . 1 . . . . . . . 1 Matter Fused 5 | . 1 . . . . . . . . 3 . . . . . . . 1 Heat Flow Errors 2 | . 1 . . . . . . . . . . . . . . . . 1 Data Loss (minor) 3 | . 1 . . . . . . . . . . . . . . . . 2 Data Loss (major) 2 | . . . . . . . . . . . . . . . . . . 2 Misfires 1 | . 1 . . . . . . . . . . . . . . . . . Alerts 1 | . . . . . . . . . . . . . . . . . . 1 Overload Shots . | . . . . . . . . . . . . . . . . . . . Overflow Damage 92 | . . . 72 . . . . . . . . . . 16 . . 4 . Projectiles 16 | . . . . . . . . . . . . . . 16 . . . . Explosions . | . . . . . . . . . . . . . . . . . . . Melee 76 | . . . 72 . . . . . . . . . . . . . 4 . Knockbacks 5 | . . . . . 1 . . . . . . . . 3 1 . . . Impact . | . . . . . . . . . . . . . . . . . . . Kinetic 5 | . . . . . 1 . . . . . . . . 3 1 . . . Secondary . | . . . . . . . . . . . . . . . . . . . Self-Inflicted Damage 13 | . . . . . . . . . . . . . . . . . 9 4 Shots . | . . . . . . . . . . . . . . . . . . . Rammed 12 | . 1 4 . 4 . . . . . . . . . . . . 1 2 Targets Rammed 14 | . 1 4 . 6 . . . . . . . . . . . . 1 2 Kicked . | . . . . . . . . . . . . . . . . . . . Crushed 2 | . . . . 2 . . . . . . . . . . . . . . Highest Temperature 231 | 20 205 55 63 22 24 6 . . . 231 45 23 3 144 172 . 216 126 Average Temperature 37 | 14 30 13 21 10 9 4 . . . 84 16 3 3 33 59 . 94 30 Received Heat Transfer 1284 | . 30 576 207 120 84 24 . . . 45 9 54 . 9 27 . 9 90 Siege Activations . | . . . . . . . . . . . . . . . . . . . Martial Activations . | . . . . . . . . . . . . . . . . . . . Shielding Activations . | . . . . . . . . . . . . . . . . . . . Robots Disrupted . | . . . . . . . . . . . . . . . . . . . Combat Hostiles . | . . . . . . . . . . . . . . . . . . . Robots Corrupted . | . . . . . . . . . . . . . . . . . . . Combat Hostiles . | . . . . . . . . . . . . . . . . . . . Parts Fried . | . . . . . . . . . . . . . . . . . . . Impact Corruptions 1 | . . . . . . . . . . . . . . . . . 1 . Robots Melted . | . . . . . . . . . . . . . . . . . . . Combat Hostiles . | . . . . . . . . . . . . . . . . . . . Parts Melted 2 | . . 2 . . . . . . . . . . . . . . . . Heat Transferred 3715 | 175 950 1985 555 50 . . . . . . . . . . . . . . Parts Sabotaged . | . . . . . . . . . . . . . . . . . . . Parts Stolen . | . . . . . . . . . . . . . . . . . . . Parts Stripped . | . . . . . . . . . . . . . . . . . . . Power Chain Reactions . | . . . . . . . . . . . . . . . . . . . Alert | -11 -10 -9 -8 -8 -8 -7 -7 -7 -7 -6 -5 -5 -5 -4 -4 -3 -2 -1 ------- Run | Yrd Mat Mat Mat Sto Gar Fac Was Fac DSF Fac Fac Upp Upp Fac Ext Res Res Acc Maximum Alert Level 3 | . . . . . 3 1 . . . . . . . . . . . 2 Low Security (%) 87 | 100 100 100 100 100 37 57 100 100 100 100 100 . . 100 100 100 100 49 Level 1 6 | . . . . . 31 42 . . . . . . . . . . . 15 Level 2 5 | . . . . . 29 . . . . . . . . . . . . 34 Level 3 . | . . . . . 2 . . . . . . . . . . . . . Level 4 . | . . . . . . . . . . . . . . . . . . . Level 5 . | . . . . . . . . . . . . . . . . . . . High Security . | . . . . . . . . . . . . . . . . . . . Max Security . | . . . . . . . . . . . . . . . . . . . Peak Influence 701 | 5 57 95 51 115 701 273 34 1 1 175 63 . . 35 34 7 60 609 Initial 273 | . 2 . . . 5 273 34 1 1 . 63 . . 1 4 7 . 13 Average 66 | 1 4 6 8 28 288 196 19 1 1 41 33 . . 7 3 2 18 252 Influence Increases 4466 | 25 238 593 193 376 816 57 . 3 . 528 45 100 . 102 106 . 120 1164 Destroy 0b10 Robot/C 1540 | . 140 400 140 180 480 20 . . . 60 . 80 . 40 . . . . Destroy 0b10 Robot/NC 160 | 25 50 45 10 10 . . . . . . . . . 15 5 . . . Destroy Leader 326 | . 46 130 40 60 10 . . . . 10 . 20 . 10 . . . . Allied During Kill 67 | . . . . 46 21 . . . . . . . . . . . . . Successful Hack 92 | . 2 18 . 11 15 22 . 3 . 8 . . . 1 3 . . 9 Disable Machine 20 | . . . . 8 . . . . . . . . . 4 8 . . . Anti-Garrison Action 250 | . . . . . 250 . . . . . . . . . . . . . Destroy Structure 46 | . . . 3 1 40 . . . . . . . . 2 . . . . Partial Spotted 300 | . . . . . . . . . . 90 . . . . 60 . 75 75 Lose Combat Pursuer 1665 | . . . . 60 . 15 . . . 360 45 . . 30 30 . 45 1080 Influence Decreases 4047 | 20 243 593 192 365 127 613 141 3 3 354 190 125 2 92 100 19 90 775 Entered New Map 727 | . 3 . . 1 7 428 111 3 3 1 112 16 2 2 9 12 . 17 Time Decay 2550 | 20 230 553 192 319 . 165 30 . . 303 68 109 . 90 91 7 75 298 Search Patrol Dispatched 200 | . . . . . . . . . . . . . . . . . . 200 Lost Part 390 | . 10 40 . 5 . . . . . 50 10 . . . . . 15 260 Lost Ally 180 | . . . . 40 120 20 . . . . . . . . . . . . Squads Dispatched 26 | . 1 3 . 3 . 2 . . 1 6 1 . . 1 1 . 2 5 Investigation 8 | . 1 . . 2 . . . . . 3 1 . . . . . . 1 Extermination 7 | . . . . . . 1 . . . 2 . . . . . . 1 3 Reinforcement 11 | . . 3 . 1 . 1 . . 1 1 . . . 1 1 . 1 1 Assault . | . . . . . . . . . . . . . . . . . . . Garrison . | . . . . . . . . . . . . . . . . . . . Intercept . | . . . . . . . . . . . . . . . . . . . Searches Triggered 2 | . . . . . . . . . . . . . . . . . . 2 Construction Impeded . | . . . . . . . . . . . . . . . . . . . Haulers Reinforced . | . . . . . . . . . . . . . . . . . . . Active Scanning Responses . | . . . . . . . . . . . . . . . . . . . Cargo Convoy Interrupts . | . . . . . . . . . . . . . . . . . . . Stealth | -11 -10 -9 -8 -8 -8 -7 -7 -7 -7 -6 -5 -5 -5 -4 -4 -3 -2 -1 --------- Run | Yrd Mat Mat Mat Sto Gar Fac Was Fac DSF Fac Fac Upp Upp Fac Ext Res Res Acc Distress Signals 9 | . . 3 2 . . . . . . 2 . . . . . . 2 . Communications Jammed . | . . . . . . . . . . . . . . . . . . . Distress Signals . | . . . . . . . . . . . . . . . . . . . Times Spotted 328 | . 16 44 15 23 24 3 3 . 6 45 5 5 . 10 12 3 26 88 Peak Tracking Total 23 | . 3 6 5 5 3 3 3 . 4 17 4 3 . 5 6 3 20 23 Tactical Retreats 37 | . . . . 2 . 1 . . . 12 2 . . 1 1 . 3 15 ECM-based Alert Blocks 2 | . . . . . . . . . . 1 . . . . . . 1 . Traps | -11 -10 -9 -8 -8 -8 -7 -7 -7 -7 -6 -5 -5 -5 -4 -4 -3 -2 -1 ------- Run | Yrd Mat Mat Mat Sto Gar Fac Was Fac DSF Fac Fac Upp Upp Fac Ext Res Res Acc Traps Triggered 15 | . 5 1 . . 2 1 . . 1 3 . . . . . . 1 1 Indirectly . | . . . . . . . . . . . . . . . . . . . Trap Hack Attempts . | . . . . . . . . . . . . . . . . . . . Triggered . | . . . . . . . . . . . . . . . . . . . Disarmed . | . . . . . . . . . . . . . . . . . . . Reprogrammed . | . . . . . . . . . . . . . . . . . . . Reused . | . . . . . . . . . . . . . . . . . . . Traps Extracted . | . . . . . . . . . . . . . . . . . . . Installed . | . . . . . . . . . . . . . . . . . . . Triggered . | . . . . . . . . . . . . . . . . . . . Machines | -11 -10 -9 -8 -8 -8 -7 -7 -7 -7 -6 -5 -5 -5 -4 -4 -3 -2 -1 ---------- Run | Yrd Mat Mat Mat Sto Gar Fac Was Fac DSF Fac Fac Upp Upp Fac Ext Res Res Acc Machines Disabled 8 | . . . . 2 3 . . . . . . . . 1 2 . . . Max in Single Turn 1 | . . . . 1 1 . . . . . . . . 1 1 . . . Garrison Relay 3 | . . . . . 3 . . . . . . . . . . . . . Machines Repaired . | . . . . . . . . . . . . . . . . . . . Machines Dismantled . | . . . . . . . . . . . . . . . . . . . Machines Sabotaged . | . . . . . . . . . . . . . . . . . . . Overloaded Fab Kills . | . . . . . . . . . . . . . . . . . . . Hacking | -11 -10 -9 -8 -8 -8 -7 -7 -7 -7 -6 -5 -5 -5 -4 -4 -3 -2 -1 --------- Run | Yrd Mat Mat Mat Sto Gar Fac Was Fac DSF Fac Fac Upp Upp Fac Ext Res Res Acc Machines Accessed 50 | . 5 7 4 6 3 2 . 1 . 4 1 1 . 5 5 1 1 4 Terminals 36 | . 5 5 2 4 3 1 . 1 . 3 . 1 . 2 4 1 1 3 Fabricators 4 | . . . . . . . . . . . 1 . . 2 . . . 1 Repair Stations 6 | . . 2 . 1 . 1 . . . 1 . . . . 1 . . . Recycling Units 1 | . . . 1 . . . . . . . . . . . . . . . Scanalyzers 2 | . . . 1 . . . . . . . . . . 1 . . . . Garrison Access 1 | . . . . 1 . . . . . . . . . . . . . . Total Hacks 109 | . 10 20 10 11 7 5 . 1 . 7 4 1 . 6 18 1 1 7 Successful 78 | . 5 17 8 9 2 4 . 1 . 3 2 1 . 6 15 1 1 3 Failed 31 | . 5 3 2 2 5 1 . . . 4 2 . . . 3 . . 4 Catastrophic 5 | . 1 2 . . 2 . . . . . . . . . . . . . Database Lockouts . | . . . . . . . . . . . . . . . . . . . Manual 41 | . 12 9 4 4 3 2 . . . 1 . . . . 3 . 1 2 Terminals 60 | . 10 10 3 6 7 3 . 1 . 4 . 1 . 2 6 1 1 5 Fabricators 9 | . . . . . . . . . . . 4 . . 3 . . . 2 Repair Stations 31 | . . 10 . 4 . 2 . . . 3 . . . . 12 . . . Recycling Units 4 | . . . 4 . . . . . . . . . . . . . . . Scanalyzers 4 | . . . 3 . . . . . . . . . . 1 . . . . Garrison Access 1 | . . . . 1 . . . . . . . . . . . . . . Terminal Hacks 27 | . 1 5 1 4 2 2 . 1 . 2 . 1 . 2 3 1 1 1 Record 3 | . . 1 . . . 1 . . . . . 1 . . . . . . Part Schematic 1 | . . 1 . . . . . . . . . . . . . . . . Open Door 6 | . . . . 2 1 . . . . . . . . 1 2 . . . Open DSF 5 | . . . . . . . . 1 . 2 . . . 1 . 1 . . Level Access Points 5 | . . . . 1 . 1 . . . . . . . . 1 . 1 1 Branch Access Points 2 | . 1 . . 1 . . . . . . . . . . . . . . Emergency Access Points 1 | . . . . . 1 . . . . . . . . . . . . . Disarm Traps 1 | . . 1 . . . . . . . . . . . . . . . . Recall Reinforcements 2 | . . 2 . . . . . . . . . . . . . . . . Zone Layout 1 | . . . 1 . . . . . . . . . . . . . . . Fabricator Hacks 7 | . . . . . . . . . . . 2 . . 3 . . . 2 Load Schematic 3 | . . . . . . . . . . . 1 . . 1 . . . 1 Build 4 | . . . . . . . . . . . 1 . . 2 . . . 1 Repair Station Hacks 29 | . . 10 . 4 . 2 . . . 1 . . . . 12 . . . Scan Component 15 | . . 5 . 2 . 1 . . . 1 . . . . 6 . . . Repair 14 | . . 5 . 2 . 1 . . . . . . . . 6 . . . Recycling Unit Hacks 4 | . . . 4 . . . . . . . . . . . . . . . Recycle Component 1 | . . . 1 . . . . . . . . . . . . . . . Retrieve Matter 2 | . . . 2 . . . . . . . . . . . . . . . Retrieve Components 1 | . . . 1 . . . . . . . . . . . . . . . Scanalyzer 3 | . . . 2 . . . . . . . . . . 1 . . . . Insert Component 1 | . . . 1 . . . . . . . . . . . . . . . Analyze 1 | . . . 1 . . . . . . . . . . . . . . . Retrieve Study 1 | . . . . . . . . . . . . . . 1 . . . . Garrison Access Hacks 1 | . . . . 1 . . . . . . . . . . . . . . Unlock Access 1 | . . . . 1 . . . . . . . . . . . . . . Unauthorized Hacks 7 | . 4 2 1 . . . . . . . . . . . . . . . Terminals 7 | . 4 2 1 . . . . . . . . . . . . . . . Botnet 3 | . 2 1 . . . . . . . . . . . . . . . . Operators 4 | . 2 1 1 . . . . . . . . . . . . . . . Fabricators . | . . . . . . . . . . . . . . . . . . . Repair Stations . | . . . . . . . . . . . . . . . . . . . Recycling Units . | . . . . . . . . . . . . . . . . . . . Scanalyzers . | . . . . . . . . . . . . . . . . . . . Garrison Access . | . . . . . . . . . . . . . . . . . . . Data Cores Recovered 2 | . . . . . . . . . . . . . . 2 . . . . Used . | . . . . . . . . . . . . . . . . . . . Hacking Detections 33 | . 4 3 2 3 3 2 . 1 . 3 1 . . 2 3 1 1 4 Full Trace Events 8 | . 1 2 . 2 . . . . . 1 1 . . . . . . 1 Feedback Events 2 | . 1 . . 1 . . . . . . . . . . . . . . Corruption 1 | . 1 . . . . . . . . . . . . . . . . . Hackware Fried 1 | . . . . 1 . . . . . . . . . . . . . . Feedback Blocked . | . . . . . . . . . . . . . . . . . . . Robot Schematics Acquired . | . . . . . . . . . . . . . . . . . . . Robots Built . | . . . . . . . . . . . . . . . . . . . Authchips . | . . . . . . . . . . . . . . . . . . . Time 152 | . . . . . . . . . . . . . . 152 . . . . Total Robot Build Rating . | . . . . . . . . . . . . . . . . . . . Part Schematics Acquired 2 | . . 1 1 . . . . . . . . . . . . . . . Parts Built 6 | . . . . . . . . . . . 2 . . 2 . . . 2 Authchips . | . . . . . . . . . . . . . . . . . . . Time 71 | . . . . . . . . . . . 20 . . 31 . . . 20 Total Part Build Rating 12 | . . . . . . . . . . . 4 . . 4 . . . 4 Part Studies Acquired 1 | . . . . . . . . . . . . . . 1 . . . . Parts Repaired 14 | . . 5 . 2 . 1 . . . . . . . . 6 . . . Time 524 | . . 136 . 64 . 16 . . . . . . . . 308 . . . Parts Recycled 1 | . . . 1 . . . . . . . . . . . . . . . Recycled Matter . | . . . . . . . . . . . . . . . . . . . Retrieved Matter . | . . . . . . . . . . . . . . . . . . . Retrieved Components 7 | . . . 7 . . . . . . . . . . . . . . . Parts Scanalyzed 1 | . . . 1 . . . . . . . . . . . . . . . Part Schematics Acquired 1 | . . . 1 . . . . . . . . . . . . . . . Parts Damaged . | . . . . . . . . . . . . . . . . . . . Bothacking | -11 -10 -9 -8 -8 -8 -7 -7 -7 -7 -6 -5 -5 -5 -4 -4 -3 -2 -1 ------------ Run | Yrd Mat Mat Mat Sto Gar Fac Was Fac DSF Fac Fac Upp Upp Fac Ext Res Res Acc Used RIF Installer . | . . . . . . . . . . . . . . . . . . . Robots Hacked . | . . . . . . . . . . . . . . . . . . . Non-combat . | . . . . . . . . . . . . . . . . . . . Combat . | . . . . . . . . . . . . . . . . . . . Robot Hacks Applied . | . . . . . . . . . . . . . . . . . . . Relay Couplers Released 10 | . . . . . 10 . . . . . . . . . . . . . Machine Destruction 10 | . . . . . 10 . . . . . . . . . . . . . Fabnet Peak Effective % . | . . . . . . . . . . . . . . . . . . . Robots Rewired . | . . . . . . . . . . . . . . . . . . . Allies Hacked 1 | . . . . . . . . . . . . . . . 1 . . . Hacks Repelled . | . . . . . . . . . . . . . . . . . . . Allies | -11 -10 -9 -8 -8 -8 -7 -7 -7 -7 -6 -5 -5 -5 -4 -4 -3 -2 -1 -------- Run | Yrd Mat Mat Mat Sto Gar Fac Was Fac DSF Fac Fac Upp Upp Fac Ext Res Res Acc Total Allies 13 | . . . . 10 2 . . . . . . . . . 1 . . . Largest Group 10 | . . . . 10 8 1 . . . . . . . . 1 . . . Highest-Rated Group 173 | . . . . 173 141 25 . . . . . . . . 46 . . . Highest-Rated Ally 46 | . . . . 29 29 25 . . . . . . . . 46 . . . Initial Warlord ECA Mod 4 | . . . . . . 4 4 4 4 3 2 2 2 1 1 . . . Total Orders . | . . . . . . . . . . . . . . . . . . . Ally Attacks 116 | . . . . 28 84 . . . . . . . . . 4 . . . Total Damage 1902 | . . . . 382 1456 . . . . . . . . . 64 . . . Kills 22 | . . . . 6 16 . . . . . . . . . . . . . Allies Corrupted 1 | . . . . . . . . . . . . . . . 1 . . . Allies Melted 2 | . . . . . 2 . . . . . . . . . . . . . Intel | -11 -10 -9 -8 -8 -8 -7 -7 -7 -7 -6 -5 -5 -5 -4 -4 -3 -2 -1 ------- Run | Yrd Mat Mat Mat Sto Gar Fac Was Fac DSF Fac Fac Upp Upp Fac Ext Res Res Acc Active Infowar (turns) 7437 | . . 2902 598 560 1319 233 55 2 165 140 51 230 9 229 408 64 133 339 Optics 6353 | . . 2902 598 560 1319 233 55 2 165 138 51 230 9 91 . . . . Terrain 2048 | . . 1435 559 54 . . . . . . . . . . . . . . Traps 1414 | . . . . . . . . . . . 2 230 9 229 408 64 133 339 Cloaking 35 | . . . . . . . . . . . . . . . . . . 35 ECM 155 | . . . . . . . . . . 2 14 . . 1 . 1 6 131 Robot Analysis Total . | . . . . . . . . . . . . . . . . . . . Derelict Logs Recovered 2 | . . . . . . . . . . . . 2 . . . . . . Drone Launches . | . . . . . . . . . . . . . . . . . . . Drone Recoveries . | . . . . . . . . . . . . . . . . . . . Exploration | -11 -10 -9 -8 -8 -8 -7 -7 -7 -7 -6 -5 -5 -5 -4 -4 -3 -2 -1 ------------- Run | Yrd Mat Mat Mat Sto Gar Fac Was Fac DSF Fac Fac Upp Upp Fac Ext Res Res Acc Turns Passed 9976 | 213 1672 2903 598 560 1319 233 55 2 165 515 119 230 9 229 408 64 133 549 Spaces Moved 9512 | 99 635 873 253 231 693 500 203 8 61 1399 353 875 47 529 448 277 561 1467 Core 142 | 6 . . . . . . . . . . . . . . . . . 136 Treads 2805 | 93 635 871 253 231 693 29 . . . . . . . . . . . . Legs . | . . . . . . . . . . . . . . . . . . . Wheels . | . . . . . . . . . . . . . . . . . . . Hover . | . . . . . . . . . . . . . . . . . . . Flight 6565 | . . 2 . . . 471 203 8 61 1399 353 875 47 529 448 277 561 1331 Fastest Speed 8 | 50 160 240 160 155 155 27 27 27 27 13 13 19 19 8 8 20 8 11 Average Speed 76 | 157 238 246 174 157 155 35 27 27 27 19 19 19 19 16 19 20 18 28 Slowest Speed 690 | 200 240 690 240 160 155 155 27 27 27 28 23 19 19 19 94 20 107 110 Overloaded Moves 456 | . . . . . . . . . . 165 8 . . 50 74 . 109 50 Propulsion Burnouts . | . . . . . . . . . . . . . . . . . . . Robots Hopped 83 | . . . . . . 5 . . . 25 . 8 . 5 3 3 11 23 Potential Cave-ins . | . . . . . . . . . . . . . . . . . . . Cave-ins Triggered . | . . . . . . . . . . . . . . . . . . . Exploration Rate (%) 41 | 5 89 69 24 45 58 18 81 . 73 33 9 91 9 13 51 8 20 45 Regions Visited 18 Branch Regions 4 Pre-discovered Areas 1 | . . . . . . . . . . . . 1 . . . . . . Known Exits Taken 14 | 1 1 1 1 1 . . . 1 . 1 1 1 1 1 1 1 1 . Unknown Exits Taken . | . . . . . . . . . . . . . . . . . . . Scrap Searched . | . . . . . . . . . . . . . . . . . . . Spaces Dug 2 | . . . 2 . . . . . . . . . . . . . . . Terrain Destroyed 4 | . . . 2 . . . . . . . . 2 . . . . . . Melee . | . . . . . . . . . . . . . . . . . . . Projectile 4 | . . . 2 . . . . . . . . 2 . . . . . . AOE . | . . . . . . . . . . . . . . . . . . . Terrain Rammed . | . . . . . . . . . . . . . . . . . . . Walls Destroyed . | . . . . . . . . . . . . . . . . . . . Machines Disabled . | . . . . . . . . . . . . . . . . . . . Actions | -11 -10 -9 -8 -8 -8 -7 -7 -7 -7 -6 -5 -5 -5 -4 -4 -3 -2 -1 --------- Run | Yrd Mat Mat Mat Sto Gar Fac Was Fac DSF Fac Fac Upp Upp Fac Ext Res Res Acc Total 11593 | 131 718 1442 340 389 856 549 202 7 208 1600 402 898 46 621 758 282 575 1569 Wait 1555 | . 29 380 33 114 124 27 . . 143 205 33 7 . 57 302 . 9 92 Move 9335 | 98 634 872 252 230 691 490 202 7 60 1351 352 858 46 518 442 270 538 1424 Hop 76 | . . . . . . 5 . . . 22 . 8 . 5 2 3 11 20 Pick Up 78 | 9 8 25 2 3 1 6 . . . 4 5 2 . 4 1 1 3 4 Fast Attach 47 | 6 2 6 1 3 . 3 . . . 3 2 2 . 3 6 1 2 7 Attach 52 | 1 1 9 2 1 1 5 . . . 6 1 1 . 4 1 3 3 13 Detach 13 | . 1 . . . . 1 . . . . . . . . 1 3 3 4 Swap 35 | . . 8 2 9 3 1 . . . 2 5 . . 2 . 1 1 1 Drop 38 | . . 13 . 4 . 8 . . . 2 4 1 . 4 . . 1 1 Fire 340 | 17 42 125 43 19 36 3 . . . 5 . 19 . 24 3 . 3 1 Melee 5 | . . . 5 . . . . . . . . . . . . . . . Ram 3 | . . . . . . . . . . . . . . . . . 1 2 Kick . | . . . . . . . . . . . . . . . . . . . Crush 11 | . 1 4 . 6 . . . . . . . . . . . . . . Escape Stasis 5 | . . . . . . . . . 5 . . . . . . . . . Rewire . | . . . . . . . . . . . . . . . . . . . Trap . | . . . . . . . . . . . . . . . . . . . Miscellaneous . | . . . . . . . . . . . . . . . . . . . Route ------- -11/Scrapyard -10/Materials (discovered 4 exits: *Mat x3 / *Min) -9/Materials (discovered 2 exits: *Mat / *Min) -8/Materials (discovered 3 exits: Fac / *Sto x2) -8/Storage (discovered 3 exits: *Fac / Rec / Gar) -8/Garrison (discovered 2 exits: *Fac x2) -7/Factory (discovered 4 exits: Fac x4) -7/Waste -7/Factory -7/DSF -6/Factory -5/Factory -5/Upper Caves -5/Upper Caves -4/Factory -4/Extension (discovered 2 exits: *Res x2) -3/Research -2/Research (discovered 3 exits: *Acc x3) -1/Access (discovered 1 exit: Sur) History --------- Turn | Location | Event 15 | -11/Scrapyard | Identified exit to Materials 15 | -11/Scrapyard | Discovered exit to Materials (range 14) 214 | -11/Scrapyard | Entered Materials 214 | -10/Materials | Evolved 1 slot: Utility x1 305 | -10/Materials | Build established: Hacker-Mutant 336 | -10/Materials | Identified exit to Mines 543 | -10/Materials | Identified exit to Materials 543 | -10/Materials | Discovered exit to Materials (range 8) 880 | -10/Materials | Discovered exit to Materials (range 16) 1402 | -10/Materials | Discovered exit to Materials (range 11) 1886 | -10/Materials | Entered another Materials area 1886 | -9/Materials | Evolved 2 slots: Utility x2 3062 | -9/Materials | Identified exit to Materials 3062 | -9/Materials | Discovered exit to Materials (range 7) 3466 | -9/Materials | Identified exit to Mines 3466 | -9/Materials | Discovered exit to Mines (range 12) 3817 | -9/Materials | Lost 3 parts (1p1n1w) 3852 | -9/Materials | Repaired Terrain Scanner 3879 | -9/Materials | Repaired Lgt. Treads 4021 | -9/Materials | Repaired Hvy. Assault Rifle 4049 | -9/Materials | Repaired Terrain Scanner 4076 | -9/Materials | Repaired Lgt. Treads 4353 | -9/Materials | Build established: Hacker-Skirmisher 4789 | -9/Materials | Entered another Materials area 4789 | -8/Materials | Evolved 2 slots: Propulsion x1, Utility x1 4853 | -8/Materials | Identified exit to Storage 4853 | -8/Materials | Discovered exit to Storage (range 14) 5222 | -8/Materials | Discovered exit to Storage (range 22) 5306 | -8/Materials | Identified exit to Factory 5306 | -8/Materials | Discovered exit to Factory (range 9) 5387 | -8/Materials | Entered Storage 5413 | -8/Storage | Met 01-MTF 5605 | -8/Storage | Assisted by bots powering up and referring to "LRC-V3" 5696 | -8/Storage | Identified exit to Recycling 5895 | -8/Storage | Repaired Mining Laser 5896 | -8/Storage | Hacking Suite fried by hacking feedback 5916 | -8/Storage | Build established: Commander-Mutant 5934 | -8/Storage | Repaired Hpw. Shotgun 5945 | -8/Storage | Identified exit to Garrison 5947 | -8/Storage | Entered Garrison 5947 | -8/Garrison | Accompanied by 9 allies (01-MTF) 5950 | -8/Garrison | 01-MTF left 6065 | -8/Garrison | Triggered checkpoint 6229 | -8/Garrison | Triggered checkpoint 6284 | -8/Garrison | Lost 4 allies 6326 | -8/Garrison | Discovered exit to Factory (range 12) 6343 | -8/Garrison | Attempted to access garrison exit controls, blocked by remote lockdown 6363 | -8/Garrison | Triggered checkpoint 6395 | -8/Garrison | Triggered checkpoint 6441 | -8/Garrison | Garrison Relay disabled 6539 | -8/Garrison | Build established: Hacker-Mutant 6635 | -8/Garrison | Triggered checkpoint 6662 | -8/Garrison | Garrison Relay disabled 6744 | -8/Garrison | Rescued a captive Derelict 6752 | -8/Garrison | Rescued a captive Derelict 6836 | -8/Garrison | Triggered checkpoint 6907 | -8/Garrison | Triggered checkpoint 6956 | -8/Garrison | Garrison Relay disabled 7207 | -8/Garrison | Triggered checkpoint 7240 | -8/Garrison | Discovered exit to Factory (range 14) 7266 | -8/Garrison | Entered Factory 7266 | -7/Factory | Accompanied by 1 ally 7266 | -7/Factory | Evolved 2 slots: Propulsion x2 7415 | -7/Factory | Repaired Hvy. Assault Rifle 7451 | -7/Factory | Identified exit to Factory 7499 | -7/Factory | Sucked down chute 7499 | -7/Factory | Entered Waste 7501 | -7/Waste | Spotted C-40 Crusher 7502 | -7/Waste | Spotted C-40 Crusher 7517 | -7/Waste | Spotted C-40 Crusher 7520 | -7/Waste | Spotted C-40 Crusher 7531 | -7/Waste | Identified exit to Factory 7531 | -7/Waste | Discovered exit to Factory (range 20) 7554 | -7/Waste | Entered Factory 7556 | -7/Factory | Identified exit to DSF 7556 | -7/Factory | Entered DSF 7580 | -7/DSF | Additional patrols routed to DSF 7607 | -7/DSF | Build established: Hacker-Sprinter 7717 | -7/DSF | Discovered exit to Factory (range 14) 7721 | -7/DSF | Entered Factory 7721 | -6/Factory | Evolved 2 slots: Propulsion x2 8235 | -6/Factory | Identified exit to Factory 8235 | -6/Factory | Discovered exit to Factory (range 8) 8236 | -6/Factory | Entered another Factory area 8236 | -5/Factory | Evolved 2 slots: Power x1, Utility x1 8287 | -5/Factory | Fabricated VTOL Module (x2) 8352 | -5/Factory | Identified exit to Upper Caves 8352 | -5/Factory | Discovered exit to Upper Caves (range 3) 8355 | -5/Factory | Entered Upper Caves 8363 | -5/Upper Caves | Met a Warlord Commander 8364 | -5/Upper Caves | Learned location of Warlord (-5) 8366 | -5/Upper Caves | Learned Factory stockpile data 8383 | -5/Upper Caves | Warlord Commander delivered Encrypted Comm Array 8386 | -5/Upper Caves | Found Encrypted Comm Array 8447 | -5/Upper Caves | Learned location of 1 exit from Proximity Caves 8546 | -5/Upper Caves | Attracted the attention of an 0b10 checkpoint 8579 | -5/Upper Caves | Identified exit to Upper Caves 8579 | -5/Upper Caves | Discovered exit to Upper Caves (range 11) 8585 | -5/Upper Caves | Entered another Upper Caves area 8593 | -5/Upper Caves | Identified exit to Factory 8593 | -5/Upper Caves | Discovered exit to Factory (range 6) 8594 | -5/Upper Caves | Entered Factory 8594 | -4/Factory | Evolved 2 slots: Propulsion x1, Utility x1 8638 | -4/Factory | Fabricated VTOL Module (x2) 8764 | -4/Factory | Spotted B-86 Titan 8823 | -4/Factory | Identified exit to Extension 8823 | -4/Factory | Discovered exit to Extension (range 6) 8823 | -4/Factory | Entered Extension 8856 | -4/Extension | Spotted B-86 Titan 8858 | -4/Extension | Spotted B-86 Titan 8873 | -4/Extension | Identified exit to Research 8919 | -4/Extension | Repaired Mic. Nuclear Core 8990 | -4/Extension | Repaired Cld. VTOL Module 9072 | -4/Extension | Repaired Cld. Cesium-ion Thruster 9105 | -4/Extension | Repaired VTOL Module 9157 | -4/Extension | Repaired Adv. Heat Sink 9183 | -4/Extension | Rescued a captive Derelict 9190 | -4/Extension | Repaired VTOL Module? 9219 | -4/Extension | Disrupted transfer network 9231 | -4/Extension | Entered Research 9231 | -3/Research | Evolved 2 slots: Propulsion x1, Utility x1 9283 | -3/Research | Spotted B-86 Titan 9294 | -3/Research | Identified exit to Research 9294 | -3/Research | Discovered exit to Research (range 8) 9295 | -3/Research | Entered another Research area 9295 | -2/Research | Evolved 2 slots: Power x1, Utility x1 9318 | -2/Research | Identified exit to Access 9428 | -2/Research | Entered Access 9428 | -1/Access | Evolved 2 slots: Propulsion x1, Utility x1 9454 | -1/Access | Lost 3 parts (1n1u1w) 9605 | -1/Access | Spotted B-99 Colossus 9642 | -1/Access | Lost 3 parts (3n) 9678 | -1/Access | Search patrols dispatched 9691 | -1/Access | Fabricated VTOL Module (x2) 9783 | -1/Access | Identified exit to Surface 9828 | -1/Access | Lost 17 parts (2p9n6u) 9882 | -1/Access | Spotted B-99 Colossus 9904 | -1/Access | Core integrity fell below 50% 9928 | -1/Access | Search patrols dispatched 9934 | -1/Access | Lost 4 parts (1n3u) 9941 | -1/Access | Spotted B-99 Colossus 9942 | -1/Access | Spotted B-99 Colossus 9970 | -1/Access | Core integrity fell below 20% 9977 | -1/Access | Destroyed by P-80 Master with Gamma Rifle Last Messages --------------- Slug penetrates Wall. Penetrated by Slug. Slug penetrates Wall. Knocked back. Penetrated by Slug. Slug penetrates Wall. System corrupted: Substantial component data lost. P-80 Master resets P-80 Master, system corruption cleaned. Adv. Assault Cannon+ destroyed. Knocked back. Slug penetrates Wall. B-99 Colossus activates siege mode. Particle Reactor blasted off. Penetrated by Slug. Imp. Ion Engine destroyed. P-80 Master resets B-99 Colossus, system corruption cleaned. Drone sends a signal. Map ----- +----------------------------------------------------+ | ?????????????????????# ! ###+##### #????????? | | ?????????????????????# # ##+########## | | ?????????????????????########## ## [# | | ??????????????????????????????# * * ## # | | ??????????????????????????????# ## + | | ??????????????????????????????######### # % | | ??????????????????????????????????????# # | | ??????????????????????????????????????# ]# | | ??????????????????????????????????????######## | | ?????????????????????????????????????????????# " | | ????????????????????????????????????????????## " | | ???????????????????????????????????????????##" " | | ???????????????????????????????????????????# " | | ???????????????????????????????????????????# %" | | ##############################+#############""% | | =%= | | |! | | ### ####### ""#####+;############+######+# | | ??# #?????# ""#?# #?? ?????? | | ??# #?????# ""#?# BB ## ???? | | ??# #?????# T#?# pBBp ## #??? | | ??# #?????# ""#?# ! ## #??? | | ??# #?????# ""#?# ""## #??? | | ??# #?????# ""#?#p ""## #??? | | ??# #?????""""""""""""?# ""## #??? | | ??# #?????????????????##@ !! T## #??? | | ??# #?????????????????#*% p! ""## #??? | | ??# #?????????????????## % ""###########??? | | ??# #??????????????????# % ""#????????????? | | ??# #??????????